[Event "Chinese League Div-A Rapid 2022"]
[Site "Fuling,Chongqing"]
[Date "2022.09.10"]
[Round "4.11"]
[White "Zeng, Chongsheng"]
[Black "Huang, Renjie"]
[Result "1/2-1/2"]
[ECO "E04"]
[WhiteElo "2597"]
[BlackElo "2446"]
[Annotator "TA"]
[PlyCount "49"]
[EventDate "2022.09.07"]
[EventType "team-tourn"]
[EventCountry "CHN"]
[SourceTitle "playchess.com"]
[Source "ChessBase"]
[SourceQuality "1"]
[TimeControl "1500+10"]

{[%evp 12,49,33,5,12,11,9,8,7,2,13,6,2,13,7,0,10,0,0,0,0,0,0,0,0,0,0,0,0,0,0,0,0,0,0,0,0,0,6,12]} 1. c4 {[%emt 0:00:03]} e6 {[%emt 0:00:01]} 2. d4 {[%emt 0:00:07]} Nf6 {[%emt 0:00:03]} 3. g3 {[%emt 0:00:02]} d5 {[%emt 0:00:02]} 4. Nf3 {[%emt 0:00:05]} dxc4 {[%emt 0:00:01]} 5. Bg2 {[%emt 0:00:05]} Bb4+ {[%emt 0:00:02]} 6. Bd2 {[%emt 0:00:08]} a5 {[%emt 0:00:01]} 7. O-O {[%emt 0:01:22]} O-O {[%emt 0:00:48] The position is equal. E04: Open Catalan: 5 Nf3.} 8. Bg5 {[%emt 0:01:16]} h6 {[%emt 0:01:29]} 9. Bxf6 {[%emt 0:00:22]} Qxf6 {[%emt 0:00:01]} 10. Qc2 {[%emt 0:02:15]} Nc6 {[%emt 0:01:25]} 11. a3 {[%emt 0:01:45] seems to push 11.Qxc4 aside.} Bd6 {[%emt 0:00:14]} 12. Qxc4 {[%emt 0:00:03]} e5 {[%emt 0:00:11][%cal Re5d4]} 13. d5 {[%emt 0:00:04]} Nd4 {[%emt 0:00:38] [#]} 14. Nc3 $146 {[%emt 0:00:21]} ({Predecessor:} 14. Nxd4 exd4 15. Nd2 b5 16. Qd3 Bf5 17. Qxb5 Rab8 18. Qc4 Rxb2 19. Nf3 d3 20. exd3 {1-0 (51) Wang,Y (2716)-Bitoon,R (2504) Jakarta 2011}) 14... b5 {[%emt 0:00:40]} 15. Qd3 {[%emt 0:00:26]} Bf5 {[%emt 0:01:00]} 16. e4 {[%emt 0:00:29]} Nxf3+ $1 {[%emt 0:00:04]} 17. Qxf3 {[%emt 0:06:07]} Bd7 {[%emt 0:00:09]} 18. Qxf6 {[%emt 0:00:01]} gxf6 {[%emt 0:00:01]} 19. Rfc1 {[%emt 0:00:30]} b4 {[%emt 0:00:16]} 20. axb4 {[%emt 0:02:21]} axb4 {[%emt 0:00:01]} 21. Nd1 {[%emt 0:00:01]} Rxa1 {[%emt 0:00:53]} 22. Rxa1 {[%emt 0:00:01]} Bc5 {[%emt 0:00:01] Prevents Ra7.} 23. b3 {[%emt 0:01:30]} Bd4 {[%emt 0:00:21]} 24. Ra2 {[%emt 0:01:47]} c6 {[%emt 0:00:11]} 25. Ne3 {[%emt 0:00:42] An even fight not without its subleties.  Weighted Error Value: White=0.03 (flawless) /Black=0.02 (flawless)} 1/2-1/2

[Event "Chinese League Div-A Rapid 2022"]
[Site "Fuling,Chongqing"]
[Date "2022.09.10"]
[Round "4.12"]
[White "Bu, Xiangzhi"]
[Black "Liu, Qingnan"]
[Result "1-0"]
[ECO "E55"]
[WhiteElo "2709"]
[BlackElo "2542"]
[Annotator "TA"]
[PlyCount "139"]
[EventDate "2022.09.07"]
[EventType "team-tourn"]
[EventCountry "CHN"]
[SourceTitle "playchess.com"]
[Source "ChessBase"]
[SourceQuality "1"]
[TimeControl "1500+10"]

{[%evp 25,139,-23,-17,-3,0,0,0,-18,-8,-22,38,52,52,49,31,43,48,7,62,33,45,50,67,-4,-4,-8,-17,-48,-42,-43,-50,-35,-31,-15,0,0,0,0,0,0,0,-12,-5,-49,-40,-69,-60,-66,-47,-64,-14,-14,-19,-106,-106,-100,-100,-108,-75,-72,-83,-89,-85,-86,-82,-83,-76,-73,-50,-60,-59,-133,-95,-97,-90,-114,316,316,316,316,302,296,726,707,707,497,477,461,498,487,8047,6808,12839,12839,12840,12836,12843,12843,12845,12845,12850,27999,27999,27999,27999,27999,27999,27999,27999,27999,27999,27999,27999,27999,27999,27999]} 1. d4 {[%emt 0:00:02]} Nf6 {[%emt 0:00:01]} 2. c4 {[%emt 0:00:02]} e6 {[%emt 0:00:01]} 3. Nc3 {[%emt 0:00:02]} Bb4 {[%emt 0:00:03]} 4. e3 {[%emt 0:00:10]} O-O {[%emt 0:00:05]} 5. Bd3 {[%emt 0:00:08]} d5 {[%emt 0:00:23]} 6. Nf3 {[%emt 0:00:13]} c5 {[%emt 0:01:09]} 7. O-O {[%emt 0:00:03]} cxd4 {[%emt 0:00:46]} 8. exd4 {[%emt 0:00:01]} dxc4 {[%emt 0:00:33]} 9. Bxc4 {[%emt 0:00:02]} b6 {[%emt 0:00:29]} 10. Qe2 {[%emt 0:00:26]} Bb7 {[%emt 0:00:45]} 11. Rd1 {[%emt 0:00:02]} Nbd7 {[%emt 0:01:42]} 12. Bg5 {[%emt 0:05:07]} Bxc3 {[%emt 0:00:02]} 13. bxc3 {[%emt 0:00:01]} Qc7 {[%emt 0:00:02]} 14. Nd2 {[%emt 0:03:10] E55: Nimzo-Indian: Rubinstein: Main Line: 7...dxc4 8 Bxc4 Nbd7.} Rfe8 {[%emt 0:04:19]} 15. Rac1 {[%emt 0:01:03]} e5 {[%emt 0:01:05]} 16. Qd3 {[%emt 0:00:23] [#] The position is equal.} Rac8 $146 {[%emt 0:03:08]} ({Predecessor:} 16... h6 17. Bh4 Rac8 18. Bg3 Qd8 19. Re1 exd4 20. cxd4 Rxe1+ 21. Rxe1 Nf8 22. h3 Ng6 {½-½ (30) Mukhin,M-Kholmov,R Baku 1972}) 17. Qg3 {[%emt 0:03:19]} Nd5 {[%emt 0:03:00]} ({Black should try} 17... exd4 $11 18. cxd4 Qxg3 19. hxg3 h6) 18. Bh6 {[%emt 0:01:10][%csl Gh6][%cal Rg3g7] A strong pair of Bishops.} g6 {[%emt 0:00:15]} 19. Bxd5 {[%emt 0:04:07]} ({Much worse is} 19. Qf3 Nf4 20. d5 Nf6 21. Bxf4 exf4 $15) 19... Bxd5 {[%emt 0:00:01]} 20. c4 {[%emt 0:00:00]} Bb7 {[%emt 0:00:22]} 21. Nb3 {[%emt 0:00:16]} Qc6 {[%emt 0:02:44]} (21... Ba6 $11) 22. dxe5 {[%emt 0:01:04]} (22. d5 $5 {[%cal Rd5c6]} Qf6 23. Rc3 $11) 22... Nxe5 {[%emt 0:00:06]} 23. Nd4 {[%emt 0:00:03]} Qc5 {[%emt 0:01:25]} 24. Qf4 {[%emt 0:00:37]} (24. Nb5 $1 $14) 24... f5 $11 {[%emt 0:00:20]} 25. Qg3 {[%emt 0:04:05]} Rcd8 {[%emt 0:00:41]} 26. Nb3 {[%emt 0:00:48]} Rxd1+ {[%emt 0:01:20]} 27. Rxd1 {[%emt 0:00:00]} Qxc4 {[%emt 0:00:02]} 28. h3 $1 {[%emt 0:00:03]} Qe2 {[%emt 0:00:24]} 29. Rd2 {[%emt 0:00:58]} Qe1+ {[%emt 0:00:02]} 30. Kh2 {[%emt 0:00:01]} Nf7 {[%emt 0:00:23]} 31. Be3 {[%emt 0:00:10]} Qf1 $40 {[%emt 0:01:48][%cal Of5f4][%mdl 128] Black has some attack.} 32. Rd4 {[%emt 0:00:52]} Qb5 {[%emt 0:01:01]} 33. Nd2 {[%emt 0:00:41]} Bd5 {[%emt 0:00:23]} 34. Qc7 {[%emt 0:00:38]} Qc6 {[%emt 0:01:00]} 35. Qxc6 {[%emt 0:00:44]} Bxc6 {[%emt 0:00:01]} 36. Rc4 {[%emt 0:00:01]} Ne5 {[%emt 0:00:42]} 37. Rc3 {[%emt 0:00:06]} Bd5 {[%emt 0:00:14]} ({Better is} 37... Rc8 $15) 38. Rc7 {[%emt 0:00:09]} Nc6 {[%emt 0:00:04]} 39. a4 {[%emt 0:00:07]} (39. Bg5 $1 $11 {keeps the balance.}) 39... Re7 $17 {[%emt 0:00:04]} 40. Rc8+ {[%emt 0:00:01]} Kf7 {[%emt 0:00:03]} 41. Nb1 {[%emt 0:00:17]} Ne5 {[%emt 0:00:17]} 42. Nc3 {[%emt 0:00:03]} Bb7 {[%emt 0:00:06]} 43. Rd8 {[%emt 0:00:11]} Rd7 {[%emt 0:00:33]} 44. Rh8 {[%emt 0:00:16]} Kg7 {[%emt 0:00:10]} 45. Re8 {[%emt 0:00:01]} Nc4 {[%emt 0:00:02]} 46. Bf4 {[%emt 0:00:12]} Kf7 {[%emt 0:00:07]} 47. Rh8 {[%emt 0:00:01]} Ke6 {[%emt 0:00:06]} 48. Nb5 {[%emt 0:00:08]} (48. Re8+ $15 Kf7 49. Rh8) 48... Bc6 {[%emt 0:00:13] Threatens to win with ...Bxb5.} 49. Nc7+ {[%emt 0:00:43]} Kf6 {[%emt 0:00:02]} 50. Rf8+ {[%emt 0:00:26]} Rf7 $2 {[%emt 0:00:13][%mdl 8192] [#] This move loses the game for Black.} (50... Ke7 $17 {stays on course.} 51. Rh8 h5 52. Bg5+ Kf7) 51. Bg5+ $1 $18 {[%emt 0:00:03][%mdl 576] Deflection} Kxg5 52. Rxf7 {[%emt 0:00:01][%mdl 4096] Endgame And now Ne6+ would win. KRN-KBN} Kf4 {[%emt 0:00:38]} 53. Re7 {[%emt 0:00:08] aiming for Ne6+.} ({Don't do} 53. Rxh7 Ke5 54. Na6 g5 55. Re7+ Kf6 56. Rxa7 Bxa4) 53... Bxa4 $2 {[%emt 0:00:22]} (53... Kg5 54. Rxh7 a5 55. h4+ Kf6) 54. Nd5+ {[%emt 0:00:05][%mdl 64] Discovered Attack} Kg5 {[%emt 0:00:00]} 55. Rxh7 {[%emt 0:00:04][%csl Gd5][%cal Rf2f4]} f4 {[%emt 0:00:02]} 56. Rxa7 {[%emt 0:00:02]} Bc6 {[%emt 0:00:09] [#]} 57. Nxb6 {[%emt 0:00:21][%mdl 512]} Nxb6 {[%emt 0:00:03]} (57... Nd6 $142 58. Rc7 Be8 59. Rc5+ Nf5) (57... Nd2 58. Ra5+) 58. Ra6 {[%emt 0:00:01]} Bxg2 {[%emt 0:00:04]} 59. Kxg2 {[%emt 0:00:00] KR-KN} Nc4 {[%emt 0:00:04]} 60. Kf3 {[%emt 0:00:16]} Nd2+ {[%emt 0:00:03]} 61. Ke2 {[%emt 0:00:01]} Ne4 {[%emt 0:00:01]} 62. h4+ {[%emt 0:00:15]} Kxh4 {[%emt 0:00:59]} 63. Rxg6 {[%emt 0:00:23]} Kh5 {[%emt 0:00:01] White mates.} 64. Rg8 {[%emt 0:00:10]} Nf6 {[%emt 0:00:02]} 65. Rg1 {[%emt 0:00:05]} Ne4 {[%emt 0:00:06]} 66. Rg8 {[%emt 0:00:13]} Nf6 {[%emt 0:00:01]} 67. Rg2 {[%emt 0:00:02]} Kh4 {[%emt 0:00:34]} 68. Kf3 {[%emt 0:00:03]} Nh5 {[%emt 0:00:00]} 69. Rh2+ {[%emt 0:00:01]} Kg5 {[%emt 0:00:00]} 70. Rxh5+ {[%emt 0:00:01] Weighted Error Value: White=0.17 (very precise) /Black=0.33} 1-0

[Event "Chinese League Div-A Rapid 2022"]
[Site "Fuling,Chongqing"]
[Date "2022.09.10"]
[Round "4.13"]
[White "Liu, Yan"]
[Black "Zhao, Jun"]
[Result "1/2-1/2"]
[ECO "A13"]
[WhiteElo "2530"]
[BlackElo "2619"]
[Annotator "TA"]
[PlyCount "67"]
[EventDate "2022.09.07"]
[EventType "team-tourn"]
[EventCountry "CHN"]
[SourceTitle "playchess.com"]
[Source "ChessBase"]
[SourceQuality "1"]
[TimeControl "1500+10"]

{[%evp 14,67,4,15,8,8,5,1,0,6,5,0,5,3,4,8,7,4,4,4,6,6,8,0,0,0,-1,-23,-23,-22,-22,-38,-38,-57,-38,-38,-38,-38,-38,-41,0,0,0,0,0,0,0,0,0,0,0,0,0,0,0,0]} 1. c4 {[%emt 0:00:03]} e6 {[%emt 0:00:22]} 2. g3 {[%emt 0:00:12]} d5 {[%emt 0:00:10]} 3. Bg2 {[%emt 0:00:04]} d4 {[%emt 0:00:15]} 4. d3 {[%emt 0:00:36]} c5 {[%emt 0:00:06]} 5. e3 {[%emt 0:00:53]} Nf6 {[%emt 0:00:15]} 6. exd4 {[%emt 0:00:45]} cxd4 {[%emt 0:00:03]} 7. Nf3 {[%emt 0:00:02]} Nc6 {[%emt 0:00:06]} 8. O-O {[%emt 0:00:07]} Bd6 {[%emt 0:00:05] A13: English Opening: 1...e6.} 9. a3 {[%emt 0:00:35]} a5 {[%emt 0:00:20] Inhibits b4.} 10. Bg5 {[%emt 0:00:02]} h6 {[%emt 0:00:11]} 11. Bxf6 {[%emt 0:00:04]} Qxf6 {[%emt 0:00:03]} 12. Nbd2 {[%emt 0:00:02][%cal Bb1d2,Bd2e4,Be4c5][%mdl 32]} Qe7 {[%emt 0:00:05]} 13. Ne4 {[%emt 0:00:31]} Bc7 {[%emt 0:00:03]} 14. b4 {[%emt 0:00:30]} axb4 {[%emt 0:00:50]} 15. axb4 {[%emt 0:00:01]} Rxa1 {[%emt 0:00:04]} 16. Qxa1 {[%emt 0:00:02]} f5 {[%emt 0:03:10]} 17. Nc5 {[%emt 0:02:11]} O-O {[%emt 0:00:05]} (17... Nxb4 {is more complex.} 18. Qa4+ Kf7 19. Qxb4 Bd6) 18. Qa4 {[%emt 0:10:54][%cal Oc5a6] [#]} Nxb4 $146 {[%emt 0:08:25]} ({Predecessor:} 18... Qd6 19. Re1 Kh7 20. b5 Qxc5 21. bxc6 bxc6 22. Nd2 Qa5 23. Qxa5 Bxa5 24. Re2 Bxd2 25. Rxd2 {0-1 (57) Vogel,C (2190)-Schmidek,E (2383) Berlin 2022}) 19. Qxb4 {[%emt 0:00:04] [#] And now Qb5 would win.} Bd6 {[%emt 0:00:01]} 20. Qb5 {[%emt 0:00:11]} Bxc5 {[%emt 0:00:05]} 21. Ne5 {[%emt 0:00:02] Black must now prevent Ng6.} Qc7 {[%emt 0:06:45]} 22. f4 {[%emt 0:00:07]} g5 {[%emt 0:00:44]} 23. Ra1 {[%emt 0:02:07]} gxf4 {[%emt 0:00:58]} 24. gxf4 {[%emt 0:00:02]} Kh7 {[%emt 0:00:27]} 25. Kh1 {[%emt 0:02:33]} Rg8 {[%emt 0:00:02]} 26. Bf3 {[%emt 0:00:32]} Qe7 {[%emt 0:01:08]} 27. Rb1 {[%emt 0:02:02] The position is equal.} Rg7 {[%emt 0:01:10]} 28. Rg1 {[%emt 0:00:24]} Rxg1+ {[%emt 0:00:55]} 29. Kxg1 {[%emt 0:00:01]} Bb4 {[%emt 0:00:02] [#] ...Bd2 is the strong threat.} 30. Qb6 {[%emt 0:00:55]} Qd6 {[%emt 0:00:34]} 31. Qb5 {[%emt 0:00:13] White wants to mate with Qe8.} Qe7 {[%emt 0:00:17] Prevents Qe8. aiming for ...Bd2.} 32. Qb6 {[%emt 0:00:02]} Qd6 {[%emt 0:02:10]} 33. Qb5 {[%emt 0:00:02] Qe8 would kill now.} Qe7 {[%emt 0:00:07] Prevents Qe8. Hoping for ...Bd2.} 34. Qb6 {[%emt 0:00:03] Weighted Error Value: White=0.03 (flawless) /Black=0.03 (flawless)} 1/2-1/2

[Event "Chinese League Div-A Rapid 2022"]
[Site "Fuling,Chongqing"]
[Date "2022.09.10"]
[Round "4.14"]
[White "Liu, Manli"]
[Black "Huang, Qian"]
[Result "1-0"]
[ECO "B01"]
[WhiteElo "2195"]
[BlackElo "2433"]
[Annotator "TA"]
[PlyCount "75"]
[EventDate "2022.09.07"]
[EventType "team-tourn"]
[EventCountry "CHN"]
[SourceTitle "playchess.com"]
[Source "ChessBase"]
[SourceQuality "1"]
[TimeControl "1500+10"]

{[%evp 14,75,58,60,72,58,66,66,70,31,79,47,69,30,43,17,48,81,73,40,71,88,106,103,150,156,148,72,72,68,73,16,6,-35,-35,-33,-50,-33,-27,-91,-95,-94,17,-221,-215,-349,0,0,200,-96,547,605,618,543,484,432,707,550,1382,1314,1763,1625,1656,1443]} 1. e4 {[%emt 0:00:02]} d5 {[%emt 0:01:03]} 2. exd5 {[%emt 0:00:06]} Qxd5 {[%emt 0:00:02]} 3. Nf3 {[%emt 0:00:10]} Nf6 {[%emt 0:00:09]} 4. Be2 {[%emt 0:00:19]} g6 {[%emt 0:00:39]} 5. d4 {[%emt 0:00:41]} Bg7 {[%emt 0:00:08]} 6. O-O {[%emt 0:00:29]} O-O {[%emt 0:00:06]} 7. c4 {[%emt 0:01:29]} Qd8 {[%emt 0:02:41]} 8. Nc3 {[%emt 0:00:07]} e6 {[%emt 0:04:45] B01: Scandinavian Defence.} 9. h3 {[%emt 0:00:44]} Nc6 {[%emt 0:00:30]} 10. Be3 {[%emt 0:00:27]} Ne7 {[%emt 0:00:04] [#] White is slightly better.} 11. Qd2 $146 {[%emt 0:01:07]} ({Predecessor:} 11. Ne5 Nf5 12. Qd2 Nxe3 13. Qxe3 Ne8 14. Rad1 Nd6 15. g4 f6 16. Nf3 c6 17. c5 {1-0 (42) Giraldo,E (1650)-Zabala,F (1930) Medellin 2022}) 11... Nf5 {[%emt 0:01:57]} (11... b6 $14) 12. Rad1 {[%emt 0:02:30]} b6 {[%emt 0:01:08]} 13. Bf4 {[%emt 0:02:13]} Bb7 {[%emt 0:00:36]} 14. Ne5 {[%emt 0:00:39]} Qe7 {[%emt 0:02:41]} 15. g4 {[%emt 0:00:51]} Nd6 {[%emt 0:00:27]} 16. Qe3 {[%emt 0:01:09]} Nfe4 {[%emt 0:05:03]} 17. c5 {[%emt 0:02:08][%cal Bc4c5,Bc5c6][%mdl 32]} Nxc3 {[%emt 0:00:42]} 18. bxc3 {[%emt 0:00:02]} Ne8 {[%emt 0:00:06]} (18... bxc5 $142 19. dxc5 Bxe5 20. Qxe5 (20. Bxe5 Ne4 $11) 20... Ne4) 19. c6 $16 {[%emt 0:01:20]} Bc8 {[%emt 0:00:01] [#]} 20. c4 {[%emt 0:00:33] 0x0.0002e0696d83dp-1022s more active pieces. The black rooks are badly placed.} (20. Rfe1 $142 $1) 20... f6 {[%emt 0:00:52]} 21. Nf3 {[%emt 0:00:53]} Nd6 {[%emt 0:00:26]} 22. c5 {[%emt 0:00:57]} (22. Rfe1 $16) 22... bxc5 $11 {[%emt 0:00:37]} 23. dxc5 {[%emt 0:00:02]} Nf7 {[%emt 0:00:01]} 24. Bc4 {[%emt 0:00:47]} e5 {[%emt 0:00:07]} 25. Rfe1 {[%emt 0:01:20]} Be6 {[%emt 0:00:19]} 26. Bb3 {[%emt 0:04:15]} (26. Qb3 $11 {keeps the balance.} Rfe8 27. Bc1) 26... Bxb3 $17 {[%emt 0:00:37]} 27. axb3 {[%emt 0:00:15]} Qe8 {[%emt 0:00:20]} ({Black should try} 27... Qe6 $17 28. Bg3 Qxc6) 28. Qe4 $2 {[%emt 0:02:05]} (28. Rd7 $1 $11) 28... exf4 $19 {[%emt 0:01:23]} 29. Qd5 {[%emt 0:00:04] [#]} (29. Qc4 {is a better defense.} Qxc6 30. Nd4) 29... Qb8 $2 {[%emt 0:00:07]} ({Resist} 29... Qd8 30. Qc4 Qb8 31. Rd7 $18) ({Better is} 29... Rd8 $1 $19 {[%cal Rd8d5]} 30. Rxe8 Rfxe8) 30. Re7 $11 {[%emt 0:00:10]} Qb4 {[%emt 0:01:10]} (30... a5 $11 {and Black is okay.}) 31. Qe6 $2 {[%emt 0:00:14] [#]} ({White has to play} 31. Rxc7 $18 {And now Rd7 would win.} Rae8 32. Rxa7) 31... Kh8 $1 {[%emt 0:01:22][%mdl 8192]} 32. Rdd7 $18 {[%emt 0:00:30][%cal Bd1d7,Bd7c7,Bc7c8][%mdl 32] White is clearly winning.} Qxc5 {[%emt 0:00:09]} 33. Rxf7 {[%emt 0:00:49]} Rxf7 {[%emt 0:00:00]} 34. Qxf7 {[%emt 0:00:02][%csl Gd7][%cal Rf7g7]} Rg8 {[%emt 0:00:01]} (34... Qf8 $142 35. Rxc7 Qxf7 36. Rxf7 Bf8) 35. Rxc7 {[%emt 0:00:33] aiming for Qe6.} a5 {[%emt 0:00:00]} 36. Qd7 {[%emt 0:00:20]} Qc3 {[%emt 0:00:05]} 37. Kg2 {[%emt 0:00:05] Black must now prevent Rc8.} Qxb3 {[%emt 0:00:06]} 38. Rc8 {[%emt 0:00:05] White used his chance.  Weighted Error Value: White=0.52/Black=0.77} 1-0

[Event "Chinese League Div-A Rapid 2022"]
[Site "Fuling,Chongqing"]
[Date "2022.09.10"]
[Round "4.15"]
[White "Gu, Xiaobing"]
[Black "Wang, Chuqiao"]
[Result "0-1"]
[ECO "C26"]
[WhiteElo "2219"]
[BlackElo "2037"]
[Annotator "RC"]
[PlyCount "100"]
[EventDate "2022.09.07"]
[EventType "team-tourn"]
[EventCountry "CHN"]
[SourceTitle "playchess.com"]
[Source "ChessBase"]
[SourceQuality "1"]
[TimeControl "1500+10"]

1. e4 {[%emt 0:00:01]} e5 {[%emt 0:00:02]} 2. Nc3 {[%emt 0:00:01]} Nc6 {[%emt 0:00:05]} 3. g3 {[%emt 0:00:02]} Nf6 {[%emt 0:00:18]} 4. Bg2 {[%emt 0:00:03]} Bc5 {[%emt 0:00:15]} 5. Nge2 {[%emt 0:00:03]} a6 {[%emt 0:00:09]} 6. O-O {[%emt 0:00:22]} d6 {[%emt 0:00:09]} 7. h3 {[%emt 0:00:09]} Bd7 {[%emt 0:01:39]} 8. Kh2 {[%emt 0:00:14]} Nd4 {[%emt 0:00:39]} 9. d3 {[%emt 0:01:21]} Nxe2 {[%emt 0:02:38]} 10. Nxe2 {[%emt 0:00:23]} Qe7 {[%emt 0:00:23]} 11. d4 {[%emt 0:03:33]} exd4 {[%emt 0:00:38]} 12. Nxd4 {[%emt 0:00:05]} O-O-O {[%emt 0:02:35]} 13. Qd3 {[%emt 0:03:07]} h5 {[%emt 0:01:28]} 14. c3 {[%emt 0:01:17]} h4 {[%emt 0:04:48]} 15. g4 {[%emt 0:00:03]} Bb6 {[%emt 0:01:01]} 16. Qf3 {[%emt 0:03:24]} Rde8 {[%emt 0:02:43]} 17. Re1 {[%emt 0:00:40]} c6 {[%emt 0:00:21]} 18. Bf4 {[%emt 0:00:27]} Bc7 {[%emt 0:00:48]} 19. Rad1 {[%emt 0:00:12]} g5 {[%emt 0:02:05]} 20. Bxg5 {[%emt 0:06:59]} Nxg4+ {[%emt 0:00:04]} 21. Qxg4 {[%emt 0:00:02]} Bxg4 {[%emt 0:00:04]} 22. Bxe7 {[%emt 0:00:02]} Bxd1 {[%emt 0:00:05]} 23. Nf5 {[%emt 0:00:55]} d5+ {[%emt 0:01:20]} 24. e5 {[%emt 0:00:01]} Bc2 {[%emt 0:00:20]} 25. Nd6+ {[%emt 0:00:17]} Bxd6 {[%emt 0:00:11]} 26. exd6 {[%emt 0:01:06]} Bf5 {[%emt 0:00:15]} 27. Re5 {[%emt 0:00:13]} Be6 {[%emt 0:00:24]} 28. f4 {[%emt 0:00:16]} Reg8 {[%emt 0:01:17]} 29. Bf6 {[%emt 0:01:11]} Rh6 {[%emt 0:00:34]} 30. Bg5 {[%emt 0:00:04]} Rxg5 {[%emt 0:00:39]} 31. Rxg5 {[%emt 0:01:16]} Rf6 {[%emt 0:00:13]} 32. Rg8+ {[%emt 0:00:19]} Kd7 {[%emt 0:00:02]} 33. Rb8 {[%emt 0:00:01]} Rxf4 {[%emt 0:01:01]} 34. Rxb7+ {[%emt 0:00:02]} Kxd6 {[%emt 0:00:01]} 35. Rb6 {[%emt 0:00:00]} Rf2 {[%emt 0:00:25]} 36. a4 {[%emt 0:00:05]} a5 {[%emt 0:00:44]} 37. b4 {[%emt 0:00:27]} axb4 {[%emt 0:00:02]} 38. cxb4 {[%emt 0:00:01]} Kc7 {[%emt 0:00:12]} 39. a5 {[%emt 0:00:04]} Rb2 {[%emt 0:00:13]} 40. Kg1 {[%emt 0:00:18]} Bd7 {[%emt 0:00:25]} 41. Bf1 {[%emt 0:00:11]} d4 {[%emt 0:00:18]} 42. Ba6 {[%emt 0:00:09]} Bxh3 {[%emt 0:00:12]} 43. Rb7+ {[%emt 0:01:27]} Kd6 {[%emt 0:00:01]} 44. b5 {[%emt 0:00:00]} cxb5 {[%emt 0:00:14]} 45. Bxb5 {[%emt 0:00:05]} d3 {[%emt 0:00:19]} 46. Rb6+ {[%emt 0:01:30]} Kc5 {[%emt 0:00:16]} 47. Rc6+ {[%emt 0:00:05]} Kd5 {[%emt 0:00:07]} 48. Rc3 {[%emt 0:00:04]} d2 {[%emt 0:00:10]} 49. Be2 {[%emt 0:00:10]} Bf5 {[%emt 0:00:10]} 50. Kf2 {[%emt 0:00:20]} d1=Q {[%emt 0:00:04]} 0-1

[Event "Chinese League Div-A Rapid 2022"]
[Site "Fuling,Chongqing"]
[Date "2022.09.10"]
[Round "4.16"]
[White "Ma, Zhonghan"]
[Black "Xu, Xiangyu"]
[Result "1/2-1/2"]
[ECO "A50"]
[WhiteElo "2485"]
[BlackElo "2571"]
[Annotator "TA"]
[PlyCount "61"]
[EventDate "2022.09.07"]
[EventType "team-tourn"]
[EventCountry "CHN"]
[SourceTitle "playchess.com"]
[Source "ChessBase"]
[SourceQuality "1"]
[TimeControl "1500+10"]

{[%evp 9,61,46,58,28,60,57,68,56,64,58,70,71,65,65,65,65,69,60,124,72,91,68,91,94,108,58,103,89,123,62,85,52,88,77,86,77,89,91,96,72,87,68,74,65,77,43,77,22,75,0,68,0,71,0]} 1. d4 {[%emt 0:00:03]} Nf6 {[%emt 0:00:02]} 2. c4 {[%emt 0:00:02]} b6 {[%emt 0:00:35]} 3. Nf3 {[%emt 0:03:16]} Bb7 {[%emt 0:00:01]} 4. g3 {[%emt 0:00:01]} Bxf3 {[%emt 0:00:03]} 5. exf3 {[%emt 0:00:02]} e6 {[%emt 0:00:02]} 6. Bg2 {[%emt 0:00:07] A50: Queen's Fianchetto Defence (1 d4 Nf6 2 c4 b6).} c6 {[%emt 0:00:03] was the old line (6...Bb4+).} 7. O-O {[%emt 0:00:19]} Be7 {[%emt 0:00:02] [#]} 8. f4 $146 {[%emt 0:00:12] White is slightly better.} ({Predecessor:} 8. Nc3 d5 9. f4 O-O 10. Qe2 Re8 11. b3 Nbd7 12. Bb2 Rc8 13. Rac1 Bd6 14. Rfd1 {1-0 (38) Platzgummer,F (2336)-Dragnev,V (2553) Playchess.com INT 2020}) 8... O-O {[%emt 0:00:09]} 9. d5 {[%emt 0:03:39]} exd5 {[%emt 0:00:28]} 10. cxd5 {[%emt 0:00:03]} Nxd5 {[%emt 0:00:09]} 11. Bxd5 {[%emt 0:00:08]} cxd5 {[%emt 0:00:03]} 12. Nc3 {[%emt 0:00:01]} Nc6 {[%emt 0:00:22]} 13. Nxd5 {[%emt 0:00:02]} Rc8 {[%emt 0:01:33]} ({Black should try} 13... Nb4 $14) 14. Be3 {[%emt 0:01:32]} (14. a3 $142) 14... Bc5 {[%emt 0:00:23]} 15. Rc1 {[%emt 0:00:26]} d6 {[%emt 0:01:14]} 16. Qg4 {[%emt 0:05:11]} Kh8 {[%emt 0:04:12]} 17. Rfd1 {[%emt 0:01:17]} (17. Bd2 $16) 17... Qe8 {[%emt 0:00:45]} 18. Qf3 {[%emt 0:03:13] White is much more active.} (18. Re1 {is interesting.} Qe4 19. Qd1 Rfe8 20. Bxc5 Qxe1+ 21. Qxe1 Rxe1+ 22. Rxe1 bxc5 23. Ne7) 18... Bxe3 {[%emt 0:03:20]} 19. fxe3 {[%emt 0:00:06]} (19. Qxe3 $16 Qd7 20. Qe4) 19... Qd7 {[%emt 0:00:37]} 20. e4 {[%emt 0:01:14]} Ne7 {[%emt 0:03:38]} 21. Rxc8 {[%emt 0:00:28]} Rxc8 {[%emt 0:00:04]} 22. Nc3 {[%emt 0:00:02]} Qc6 {[%emt 0:01:06]} 23. Qd3 {[%emt 0:00:15]} Rd8 {[%emt 0:00:14]} 24. Qd4 {[%emt 0:00:11]} Kg8 {[%emt 0:00:26]} 25. Rd2 {[%emt 0:00:43]} h6 {[%emt 0:00:31]} 26. a3 {[%emt 0:01:10]} Kf8 {[%emt 0:01:45]} 27. Kf2 {[%emt 0:00:33]} Qc8 {[%emt 0:00:25]} 28. Kg2 {[%emt 0:00:10]} (28. Qd3 $16) 28... Qc6 {[%emt 0:00:08] Inhibits Nb5.} (28... f5 $1 $11 {keeps the balance.}) 29. Kf2 {[%emt 0:01:08]} (29. g4 $16) 29... Qd7 {[%emt 0:00:07]} ({Black should play} 29... Qc8 $1 $11) 30. Kg2 {[%emt 0:00:18]} Qc6 $1 {[%emt 0:00:02]} 31. Kf2 {[%emt 0:00:28] Weighted Error Value: White=0.26 (precise) /Black=0.23 (precise)} ({Better is} 31. g4 $16) 1/2-1/2